[Event "*** Titled Tuesday Blitz"]
[Site "Chess.com"]
[Date "2020.05.19"]
[Round "1"]
[White "Baby_Shak"]
[Black "Stronger1799"]
[Result "1-0"]
[WhiteElo "2603"]
[BlackElo "2302"]
[TimeControl "180+1"]
[EndTime "12:08:45 PDT"]
[Termination "Baby_Shak won on time"]

1. d4 {[%clk 0:03:00.9]} 1... Nf6 {[%clk 0:02:30.3]} 2. Bf4 {[%clk 0:03:00.7]}
2... g6 {[%clk 0:02:29.7]} 3. Nc3 {[%clk 0:03:00.6]} 3... d5 {[%clk 0:02:29.3]}
4. e3 {[%clk 0:03:00.5]} 4... Bg7 {[%clk 0:02:29.3]} 5. h4 {[%clk 0:03:00.4]}
5... h5 {[%clk 0:02:27.5]} 6. Nf3 {[%clk 0:03:00.1]} 6... O-O {[%clk 0:02:27.5]}
7. Ne5 {[%clk 0:02:59.8]} 7... c5 {[%clk 0:02:12.7]} 8. Qd2 {[%clk 0:02:58.6]}
8... Nc6 {[%clk 0:02:12.2]} 9. O-O-O {[%clk 0:02:57.9]} 9... cxd4 {[%clk
0:02:08.4]} 10. exd4 {[%clk 0:02:57.4]} 10... Ne4 {[%clk 0:02:08.8]} 11. Nxe4
{[%clk 0:02:56.4]} 11... dxe4 {[%clk 0:02:08.9]} 12. Bc4 {[%clk 0:02:54.9]}
12... Nxe5 {[%clk 0:02:05.4]} 13. dxe5 {[%clk 0:02:41.6]} 13... Bg4 {[%clk
0:02:04.8]} 14. Qxd8 {[%clk 0:02:33.1]} 14... Rfxd8 {[%clk 0:02:05.7]} 15. Rxd8+
{[%clk 0:02:33.4]} 15... Rxd8 {[%clk 0:02:05.8]} 16. Re1 {[%clk 0:02:29.8]}
16... Kf8 {[%clk 0:01:41.3]} 17. c3 {[%clk 0:02:27.9]} 17... Bf5 {[%clk
0:00:56.7]} 18. Rd1 {[%clk 0:02:22.5]} 18... Rxd1+ {[%clk 0:00:39.6]} 19. Kxd1
{[%clk 0:02:23.4]} 19... Bd7 {[%clk 0:00:33.6]} 20. Kd2 {[%clk 0:02:09.1]} 20...
Bc6 {[%clk 0:00:31.6]} 21. Ke3 {[%clk 0:02:07.7]} 21... f6 {[%clk 0:00:20.5]}
22. Bb3 {[%clk 0:01:49.8]} 22... Ke8 {[%clk 0:00:20]} 23. Bc2 {[%clk 0:01:44.2]}
23... f5 {[%clk 0:00:20.2]} 24. Bb3 {[%clk 0:01:43.7]} 24... Bd7 {[%clk
0:00:18.2]} 25. Bd5 {[%clk 0:01:39.6]} 25... b6 {[%clk 0:00:18]} 26. e6 {[%clk
0:01:23]} 26... Bc8 {[%clk 0:00:14.7]} 27. Bb8 {[%clk 0:01:22.6]} 27... a6
{[%clk 0:00:13.7]} 28. Bc7 {[%clk 0:01:17.2]} 28... b5 {[%clk 0:00:13]} 29. Bf4
{[%clk 0:00:57.1]} 29... Bf6 {[%clk 0:00:12.8]} 30. g3 {[%clk 0:00:56.7]} 30...
Kd8 {[%clk 0:00:07.8]} 31. Kd2 {[%clk 0:00:54.6]} 31... Bg7 {[%clk 0:00:07.4]}
32. b3 {[%clk 0:00:53.9]} 32... Bf6 {[%clk 0:00:07.5]} 33. c4 {[%clk 0:00:53.5]}
33... Bd4 {[%clk 0:00:06.5]} 34. Ke2 {[%clk 0:00:48]} 34... bxc4 {[%clk
0:00:05.7]} 35. bxc4 {[%clk 0:00:47.8]} 35... Bc5 {[%clk 0:00:06.1]} 36. Bd2
{[%clk 0:00:46.4]} 36... Bd4 {[%clk 0:00:05.7]} 37. Ba5+ {[%clk 0:00:45.3]}
37... Ke8 {[%clk 0:00:06.1]} 38. Bb4 {[%clk 0:00:40.2]} 38... Kf8 {[%clk
0:00:06.2]} 39. c5 {[%clk 0:00:37.7]} 39... Kg7 {[%clk 0:00:04.9]} 40. c6 {[%clk
0:00:36.9]} 40... Kf6 {[%clk 0:00:05.2]} 41. Bc4 {[%clk 0:00:23.7]} 41... Bxe6
{[%clk 0:00:04.4]} 42. Bxa6 {[%clk 0:00:23.4]} 42... Bxa2 {[%clk 0:00:02.3]} 43.
c7 {[%clk 0:00:22.5]} 43... Be6 {[%clk 0:00:02.9]} 44. c8=Q {[%clk 0:00:22.2]}
44... Bxc8 {[%clk 0:00:03.5]} 45. Bxc8 {[%clk 0:00:23.1]} 45... Bb2 {[%clk
0:00:03.6]} 46. Bd2 {[%clk 0:00:22.8]} 46... e6 {[%clk 0:00:03.7]} 47. Bg5+
{[%clk 0:00:22.5]} 47... Kf7 {[%clk 0:00:03.5]} 48. Bd7 {[%clk 0:00:21.6]} 48...
Be5 {[%clk 0:00:03.5]} 49. Bb5 {[%clk 0:00:21.3]} 49... Bd4 {[%clk 0:00:03.8]}
50. Bc4 {[%clk 0:00:21.2]} 50... Bc5 {[%clk 0:00:03.9]} 51. Be3 {[%clk
0:00:21.1]} 51... Bd6 {[%clk 0:00:04]} 52. Bd4 {[%clk 0:00:21.4]} 52... Ke7
{[%clk 0:00:03.6]} 53. Ke3 {[%clk 0:00:20.8]} 53... Kf7 {[%clk 0:00:04.1]} 54.
Bb6 {[%clk 0:00:19.7]} 54... Be5 {[%clk 0:00:04.5]} 55. Bc5 {[%clk 0:00:19]}
55... Bc7 {[%clk 0:00:03]} 56. Kd4 {[%clk 0:00:18.2]} 56... Kf6 {[%clk
0:00:03.5]} 57. Kc3 {[%clk 0:00:16]} 57... Be5+ {[%clk 0:00:03.9]} 58. Bd4
{[%clk 0:00:16.1]} 58... Bxd4+ {[%clk 0:00:04.3]} 59. Kxd4 {[%clk 0:00:17]}
59... e5+ {[%clk 0:00:03.5]} 60. Ke3 {[%clk 0:00:16.3]} 60... g5 {[%clk
0:00:03.6]} 61. Be2 {[%clk 0:00:14.4]} 61... f4+ {[%clk 0:00:03.7]} 62. Kxe4
{[%clk 0:00:14.2]} 62... fxg3 {[%clk 0:00:03.9]} 63. hxg5+ {[%clk 0:00:08.2]}
63... Kxg5 {[%clk 0:00:04.3]} 64. fxg3 {[%clk 0:00:09.1]} 64... h4 {[%clk
0:00:04.9]} 65. g4 {[%clk 0:00:09.5]} 65... h3 {[%clk 0:00:05.3]} 66. Kf3 {[%clk
0:00:10]} 66... Kh4 {[%clk 0:00:03.5]} 67. Kf2 {[%clk 0:00:09.3]} 67... e4
{[%clk 0:00:03.4]} 68. Bd1 {[%clk 0:00:07.7]} 68... h2 {[%clk 0:00:01.9]} 69.
Kg2 {[%clk 0:00:07.8]} 1-0

[Event "*** Titled Tuesday Blitz"]
[Site "Chess.com"]
[Date "2020.05.19"]
[Round "1"]
[White "kleopl"]
[Black "KuzubovYuriy"]
[Result "0-1"]
[WhiteElo "2372"]
[BlackElo "2707"]
[TimeControl "180+1"]
[EndTime "12:08:46 PDT"]
[Termination "KuzubovYuriy won by resignation"]

1. c4 {[%clk 0:03:00.9]} 1... e5 {[%clk 0:02:56.9]} 2. Nc3 {[%clk 0:03:00.3]}
2... Bb4 {[%clk 0:02:54.9]} 3. Nd5 {[%clk 0:02:59.6]} 3... Bc5 {[%clk
0:02:54.7]} 4. Nf3 {[%clk 0:02:58]} 4... c6 {[%clk 0:02:53.9]} 5. Nc3 {[%clk
0:02:57.2]} 5... d6 {[%clk 0:02:47]} 6. e3 {[%clk 0:02:56.6]} 6... Qe7 {[%clk
0:02:46.7]} 7. a3 {[%clk 0:02:52.8]} 7... Bb6 {[%clk 0:02:44.2]} 8. Be2 {[%clk
0:02:49.4]} 8... Nf6 {[%clk 0:02:43.6]} 9. d4 {[%clk 0:02:45.6]} 9... e4 {[%clk
0:02:42.3]} 10. Nd2 {[%clk 0:02:43]} 10... d5 {[%clk 0:02:40.1]} 11. Qb3 {[%clk
0:02:38.6]} 11... Be6 {[%clk 0:02:35.9]} 12. O-O {[%clk 0:02:27.4]} 12... O-O
{[%clk 0:02:28.7]} 13. f3 {[%clk 0:02:23.8]} 13... exf3 {[%clk 0:02:15.4]} 14.
Nxf3 {[%clk 0:02:24.7]} 14... dxc4 {[%clk 0:02:05.5]} 15. Bxc4 {[%clk
0:02:22.9]} 15... Bxc4 {[%clk 0:02:06.4]} 16. Qxc4 {[%clk 0:02:23.5]} 16... Nbd7
{[%clk 0:02:06.1]} 17. Bd2 {[%clk 0:02:13]} 17... Ne4 {[%clk 0:02:01.8]} 18.
Rae1 {[%clk 0:02:05.6]} 18... Rae8 {[%clk 0:01:57.4]} 19. Qd3 {[%clk 0:01:52.7]}
19... f5 {[%clk 0:01:38.4]} 20. Na4 {[%clk 0:01:46.2]} 20... Qe6 {[%clk
0:01:20.8]} 21. Bb4 {[%clk 0:01:40]} 21... Rf7 {[%clk 0:01:19.2]} 22. Nxb6
{[%clk 0:01:28.4]} 22... axb6 {[%clk 0:01:18.8]} 23. Re2 {[%clk 0:00:59]} 23...
h6 {[%clk 0:01:18]} 24. Nd2 {[%clk 0:00:54.6]} 24... Nxd2 {[%clk 0:01:13.2]} 25.
Bxd2 {[%clk 0:00:53]} 25... Qe4 {[%clk 0:00:55.3]} 26. Qxe4 {[%clk 0:00:49.6]}
26... fxe4 {[%clk 0:00:56.2]} 27. Ref2 {[%clk 0:00:47]} 27... Rxf2 {[%clk
0:00:55.5]} 28. Rxf2 {[%clk 0:00:47.9]} 28... Rf8 {[%clk 0:00:51.9]} 29. Re2
{[%clk 0:00:48.1]} 29... Nf6 {[%clk 0:00:51.2]} 30. Be1 {[%clk 0:00:46.5]} 30...
Nd5 {[%clk 0:00:49.7]} 31. Bg3 {[%clk 0:00:43.3]} 31... b5 {[%clk 0:00:49.5]}
32. Be5 {[%clk 0:00:42.2]} 32... g6 {[%clk 0:00:46.7]} 33. Bd6 {[%clk 0:00:35]}
33... Rf6 {[%clk 0:00:45.5]} 34. Be5 {[%clk 0:00:34.8]} 34... Rf5 {[%clk
0:00:43.2]} 35. Bg3 {[%clk 0:00:26.1]} 35... Kf7 {[%clk 0:00:41.1]} 36. Bf2
{[%clk 0:00:26.1]} 36... h5 {[%clk 0:00:37.8]} 37. Rc2 {[%clk 0:00:23.1]} 37...
Ke6 {[%clk 0:00:36.9]} 38. Re2 {[%clk 0:00:21.7]} 38... Rf8 {[%clk 0:00:30]} 39.
Rc2 {[%clk 0:00:20.3]} 39... b4 {[%clk 0:00:28.6]} 40. a4 {[%clk 0:00:15.7]}
40... b3 {[%clk 0:00:26.8]} 41. Rc4 {[%clk 0:00:12.6]} 41... Kd7 {[%clk
0:00:18.9]} 42. h3 {[%clk 0:00:11.6]} 42... Ra8 {[%clk 0:00:17.6]} 43. Kf1
{[%clk 0:00:10.3]} 43... Nb6 {[%clk 0:00:15.5]} 44. Rb4 {[%clk 0:00:09.6]} 44...
Nd5 {[%clk 0:00:11.5]} 45. Rxb7+ {[%clk 0:00:08.4]} 45... Ke6 {[%clk 0:00:11.4]}
46. Rxb3 {[%clk 0:00:08.4]} 46... Rxa4 {[%clk 0:00:11.6]} 47. Ra3 {[%clk
0:00:08.2]} 47... Rc4 {[%clk 0:00:09.8]} 48. Ke2 {[%clk 0:00:07.8]} 48... Rc2+
{[%clk 0:00:09.8]} 49. Ke1 {[%clk 0:00:07.9]} 49... Rxb2 {[%clk 0:00:09.6]} 50.
Ra8 {[%clk 0:00:07.7]} 50... Nb4 {[%clk 0:00:09.2]} 51. Re8+ {[%clk 0:00:06.9]}
51... Kf7 {[%clk 0:00:09.4]} 52. Rxe4 {[%clk 0:00:06.6]} 52... Nd3+ {[%clk
0:00:09.7]} 53. Kf1 {[%clk 0:00:04.5]} 53... Rxf2+ {[%clk 0:00:09.8]} 54. Kg1
{[%clk 0:00:04.6]} 54... Rf6 {[%clk 0:00:09.5]} 55. g4 {[%clk 0:00:04.3]} 55...
Re6 {[%clk 0:00:08]} 56. Rxe6 {[%clk 0:00:04]} 56... Kxe6 {[%clk 0:00:08.9]} 57.
gxh5 {[%clk 0:00:04.4]} 57... gxh5 {[%clk 0:00:09.8]} 58. Kg2 {[%clk 0:00:04.9]}
58... Kf5 {[%clk 0:00:08.8]} 59. Kf3 {[%clk 0:00:05.1]} 59... Ne1+ {[%clk
0:00:08.5]} 60. Ke2 {[%clk 0:00:05.3]} 60... Nc2 {[%clk 0:00:08.4]} 61. Kd3
{[%clk 0:00:05.3]} 61... Nb4+ {[%clk 0:00:07.9]} 62. Kc4 {[%clk 0:00:05]} 62...
Nd5 {[%clk 0:00:07]} 63. Kd3 {[%clk 0:00:04.4]} 63... Nf6 {[%clk 0:00:06.9]} 64.
Kc4 {[%clk 0:00:04.1]} 64... Ke4 {[%clk 0:00:06.1]} 65. Kc5 {[%clk 0:00:04.5]}
65... Kxe3 {[%clk 0:00:06.3]} 66. Kxc6 {[%clk 0:00:04.9]} 66... Kf3 {[%clk
0:00:06.5]} 67. d5 {[%clk 0:00:04.6]} 67... Kg3 {[%clk 0:00:05.9]} 68. d6 {[%clk
0:00:04.8]} 68... Kxh3 {[%clk 0:00:06.3]} 69. Kc5 {[%clk 0:00:04.1]} 69... Ne4+
{[%clk 0:00:06.4]} 70. Kd5 {[%clk 0:00:03.5]} 70... Nxd6 {[%clk 0:00:07.3]} 71.
Kxd6 {[%clk 0:00:03.9]} 71... Kg2 {[%clk 0:00:07.8]} 0-1

[Event "*** Titled Tuesday Blitz"]
[Site "Chess.com"]
[Date "2020.05.19"]
[Round "1"]
[White "KingChess345"]
[Black "szachuspl"]
[Result "0-1"]
[WhiteElo "2211"]
[BlackElo "2534"]
[TimeControl "180+1"]
[EndTime "12:08:48 PDT"]
[Termination "szachuspl won by checkmate"]

1. d4 {[%clk 0:03:00.9]} 1... Nf6 {[%clk 0:02:55.7]} 2. Nf3 {[%clk 0:03:01.3]}
2... g6 {[%clk 0:02:51.9]} 3. g3 {[%clk 0:03:01.6]} 3... Bg7 {[%clk 0:02:51.5]}
4. Bg2 {[%clk 0:03:02]} 4... O-O {[%clk 0:02:52]} 5. O-O {[%clk 0:03:02.4]} 5...
d6 {[%clk 0:02:51.2]} 6. c4 {[%clk 0:03:02.5]} 6... Nbd7 {[%clk 0:02:47.2]} 7.
Nc3 {[%clk 0:03:02]} 7... e5 {[%clk 0:02:47.4]} 8. e4 {[%clk 0:02:59.9]} 8... c6
{[%clk 0:02:45]} 9. h3 {[%clk 0:02:56.9]} 9... Qe7 {[%clk 0:02:41.7]} 10. Be3
{[%clk 0:02:54.7]} 10... Re8 {[%clk 0:02:40.5]} 11. Qc2 {[%clk 0:02:47.7]} 11...
a6 {[%clk 0:02:40.1]} 12. a4 {[%clk 0:02:43.8]} 12... a5 {[%clk 0:02:39.6]} 13.
Kh2 {[%clk 0:02:42.8]} 13... exd4 {[%clk 0:02:33.8]} 14. Nxd4 {[%clk 0:02:43.7]}
14... Nc5 {[%clk 0:02:33.9]} 15. Rfe1 {[%clk 0:02:21.3]} 15... h5 {[%clk
0:02:20.9]} 16. Rad1 {[%clk 0:02:12.4]} 16... h4 {[%clk 0:02:15.1]} 17. g4
{[%clk 0:02:00.9]} 17... Nh7 {[%clk 0:02:14.5]} 18. f4 {[%clk 0:01:51.6]} 18...
Ne6 {[%clk 0:02:13.4]} 19. Qf2 {[%clk 0:01:44.3]} 19... Nxd4 {[%clk 0:02:11.7]}
20. Bxd4 {[%clk 0:01:44.7]} 20... Bxd4 {[%clk 0:02:11.9]} 21. Qxd4 {[%clk
0:01:42.5]} 21... g5 {[%clk 0:02:12.8]} 22. Qxd6 {[%clk 0:01:29.1]} 22... Qxd6
{[%clk 0:02:10.9]} 23. Rxd6 {[%clk 0:01:30]} 23... gxf4 {[%clk 0:02:11.4]} 24.
Rf1 {[%clk 0:01:28.6]} 24... Be6 {[%clk 0:02:02.9]} 25. b3 {[%clk 0:01:20.4]}
25... Nf8 {[%clk 0:02:02.5]} 26. Rxf4 {[%clk 0:01:17.2]} 26... Ng6 {[%clk
0:02:02.8]} 27. Rf2 {[%clk 0:01:12.6]} 27... Ne5 {[%clk 0:02:02.6]} 28. Rfd2
{[%clk 0:01:12.5]} 28... Kg7 {[%clk 0:01:57.9]} 29. Kg1 {[%clk 0:01:07.1]} 29...
Ra6 {[%clk 0:01:55.7]} 30. Kf2 {[%clk 0:01:06.4]} 30... Rb6 {[%clk 0:01:55.9]}
31. Nb5 {[%clk 0:00:45.2]} 31... Rc8 {[%clk 0:01:09.8]} 32. c5 {[%clk
0:00:36.9]} 32... Ra6 {[%clk 0:01:06.8]} 33. Nd4 {[%clk 0:00:36.7]} 33... Re8
{[%clk 0:01:03.7]} 34. Ke3 {[%clk 0:00:34.4]} 34... Raa8 {[%clk 0:01:02.3]} 35.
Bf1 {[%clk 0:00:31.1]} 35... Re7 {[%clk 0:00:52.4]} 36. Kf4 {[%clk 0:00:27.5]}
36... Ng6+ {[%clk 0:00:51]} 37. Ke3 {[%clk 0:00:23.6]} 37... Rae8 {[%clk
0:00:50.8]} 38. Nxe6+ {[%clk 0:00:20]} 38... Rxe6 {[%clk 0:00:48.3]} 39. Rxe6
{[%clk 0:00:20.1]} 39... Rxe6 {[%clk 0:00:47.7]} 40. Rd7 {[%clk 0:00:20.1]}
40... Re7 {[%clk 0:00:43.3]} 41. Rxe7 {[%clk 0:00:19.3]} 41... Nxe7 {[%clk
0:00:43.1]} 42. Kf4 {[%clk 0:00:19.5]} 42... Kf6 {[%clk 0:00:33.3]} 43. g5+
{[%clk 0:00:18.4]} 43... Kg6 {[%clk 0:00:32.5]} 44. Bd3 {[%clk 0:00:17.4]} 44...
f6 {[%clk 0:00:20.7]} 45. gxf6 {[%clk 0:00:16.4]} 45... Kxf6 {[%clk 0:00:21.3]}
46. e5+ {[%clk 0:00:13.1]} 46... Ke6 {[%clk 0:00:20.4]} 47. Bc4+ {[%clk
0:00:13.5]} 47... Kd7 {[%clk 0:00:20.9]} 48. Kg4 {[%clk 0:00:12.3]} 48... Ng6
{[%clk 0:00:20.6]} 49. Kf5 {[%clk 0:00:12.7]} 49... Ne7+ {[%clk 0:00:18.2]} 50.
Kg5 {[%clk 0:00:12.9]} 50... Ke8 {[%clk 0:00:17.3]} 51. e6 {[%clk 0:00:11]}
51... Ng8 {[%clk 0:00:16.1]} 52. Kxh4 {[%clk 0:00:10.7]} 52... Ke7 {[%clk
0:00:16.6]} 53. Kg5 {[%clk 0:00:10.7]} 53... Nf6 {[%clk 0:00:17]} 54. Kg6 {[%clk
0:00:10.3]} 54... Ne4 {[%clk 0:00:16.4]} 55. h4 {[%clk 0:00:10]} 55... Nxc5
{[%clk 0:00:15.8]} 56. h5 {[%clk 0:00:09.6]} 56... b5 {[%clk 0:00:15.1]} 57. h6
{[%clk 0:00:04.1]} 57... bxc4 {[%clk 0:00:15.2]} 58. h7 {[%clk 0:00:04.2]} 58...
Nxe6 {[%clk 0:00:14.8]} 59. h8=Q {[%clk 0:00:03.9]} 59... cxb3 {[%clk 0:00:15]}
60. Qb2 {[%clk 0:00:02.2]} 60... Nc5 {[%clk 0:00:14.1]} 61. Qe5+ {[%clk
0:00:01.7]} 61... Kd7 {[%clk 0:00:14.3]} 62. Qxc5 {[%clk 0:00:02]} 62... b2
{[%clk 0:00:14.9]} 63. Qc3 {[%clk 0:00:02.5]} 63... b1=Q+ {[%clk 0:00:15.8]} 64.
Kf6 {[%clk 0:00:01.7]} 64... Qb4 {[%clk 0:00:15.1]} 65. Qd3+ {[%clk 0:00:01.6]}
65... Qd6+ {[%clk 0:00:15.2]} 66. Qxd6+ {[%clk 0:00:01.6]} 66... Kxd6 {[%clk
0:00:16.1]} 67. Kf5 {[%clk 0:00:02.2]} 67... Kd5 {[%clk 0:00:16.4]} 68. Kf4
{[%clk 0:00:02.2]} 68... Kd4 {[%clk 0:00:16.9]} 69. Kf3 {[%clk 0:00:02.3]} 69...
Kd3 {[%clk 0:00:17.4]} 70. Kf2 {[%clk 0:00:02.4]} 70... Kd2 {[%clk 0:00:17.5]}
71. Kf3 {[%clk 0:00:03.3]} 71... c5 {[%clk 0:00:17.9]} 72. Ke4 {[%clk
0:00:04.2]} 72... c4 {[%clk 0:00:18.4]} 73. Kd4 {[%clk 0:00:05]} 73... c3 {[%clk
0:00:19.3]} 74. Kc5 {[%clk 0:00:05.6]} 74... c2 {[%clk 0:00:20]} 75. Kb5 {[%clk
0:00:06.5]} 75... c1=Q {[%clk 0:00:20.9]} 76. Kxa5 {[%clk 0:00:07.3]} 76... Qb2
{[%clk 0:00:21.1]} 77. Ka6 {[%clk 0:00:07.3]} 77... Kc3 {[%clk 0:00:21.5]} 78.
a5 {[%clk 0:00:06.3]} 78... Kc4 {[%clk 0:00:22]} 79. Ka7 {[%clk 0:00:06.2]}
79... Kc5 {[%clk 0:00:22.5]} 80. a6 {[%clk 0:00:06.5]} 80... Kc6 {[%clk
0:00:22.7]} 81. Ka8 {[%clk 0:00:06.9]} 81... Kc7 {[%clk 0:00:22.9]} 82. a7
{[%clk 0:00:07.1]} 82... Qb7# {[%clk 0:00:23.3]} 0-1

[Event "*** Titled Tuesday Blitz"]
[Site "Chess.com"]
[Date "2020.05.19"]
[Round "1"]
[White "vaishali2001"]
[Black "almaguerjm"]
[Result "1-0"]
[WhiteElo "2634"]
[BlackElo "2333"]
[TimeControl "180+1"]
[EndTime "12:08:56 PDT"]
[Termination "vaishali2001 won on time"]

1. e4 {[%clk 0:03:00.7]} 1... e5 {[%clk 0:02:58.7]} 2. Nf3 {[%clk 0:02:59.3]}
2... Nc6 {[%clk 0:02:47]} 3. Bb5 {[%clk 0:02:57.7]} 3... a6 {[%clk 0:02:45.9]}
4. Ba4 {[%clk 0:02:57.3]} 4... Nf6 {[%clk 0:02:44.5]} 5. d3 {[%clk 0:02:54.9]}
5... b5 {[%clk 0:02:39.5]} 6. Bb3 {[%clk 0:02:55]} 6... d6 {[%clk 0:02:39.6]} 7.
a4 {[%clk 0:02:51.7]} 7... Bb7 {[%clk 0:02:39.3]} 8. axb5 {[%clk 0:02:35.9]}
8... axb5 {[%clk 0:02:40.2]} 9. Rxa8 {[%clk 0:02:35.9]} 9... Qxa8 {[%clk
0:02:39.5]} 10. Ng5 {[%clk 0:02:31.7]} 10... Nd8 {[%clk 0:02:35.3]} 11. O-O
{[%clk 0:02:29.2]} 11... h6 {[%clk 0:02:34.1]} 12. Nf3 {[%clk 0:02:12.8]} 12...
Be7 {[%clk 0:02:23.5]} 13. Nh4 {[%clk 0:01:59.9]} 13... Ne6 {[%clk 0:02:04.1]}
14. Nf5 {[%clk 0:01:57.2]} 14... Bf8 {[%clk 0:01:57.8]} 15. f4 {[%clk
0:01:51.3]} 15... exf4 {[%clk 0:01:51.8]} 16. Bxf4 {[%clk 0:01:52.2]} 16... Nxf4
{[%clk 0:01:43.3]} 17. Rxf4 {[%clk 0:01:53.1]} 17... Qa7+ {[%clk 0:01:40.3]} 18.
Kh1 {[%clk 0:01:51.4]} 18... Bc8 {[%clk 0:01:40.4]} 19. Nc3 {[%clk 0:01:26.3]}
19... c6 {[%clk 0:01:38.3]} 20. h3 {[%clk 0:01:10.2]} 20... Be6 {[%clk
0:01:35.3]} 21. Bxe6 {[%clk 0:00:59.3]} 21... fxe6 {[%clk 0:01:36.2]} 22. Nh4
{[%clk 0:00:58.9]} 22... Be7 {[%clk 0:00:48.2]} 23. Ng6 {[%clk 0:00:57.9]} 23...
Rg8 {[%clk 0:00:44.7]} 24. Rf1 {[%clk 0:00:55.7]} 24... Qd4 {[%clk 0:00:42.7]}
25. Qa1 {[%clk 0:00:49.4]} 25... Kf7 {[%clk 0:00:42]} 26. Nxe7 {[%clk
0:00:46.4]} 26... Kxe7 {[%clk 0:00:42.9]} 27. Qa6 {[%clk 0:00:46.2]} 27... Rd8
{[%clk 0:00:39.7]} 28. Qxc6 {[%clk 0:00:45.4]} 28... b4 {[%clk 0:00:38.8]} 29.
Nb5 {[%clk 0:00:37.1]} 29... Qxb2 {[%clk 0:00:36.1]} 30. d4 {[%clk 0:00:33.3]}
30... b3 {[%clk 0:00:27.5]} 31. cxb3 {[%clk 0:00:26.5]} 31... Qxb3 {[%clk
0:00:27.4]} 32. e5 {[%clk 0:00:25.9]} 32... dxe5 {[%clk 0:00:26.7]} 33. dxe5
{[%clk 0:00:26.8]} 33... Rd5 {[%clk 0:00:10.5]} 34. exf6+ {[%clk 0:00:23.4]}
34... gxf6 {[%clk 0:00:11.4]} 35. Qc7+ {[%clk 0:00:22.2]} 35... Rd7 {[%clk
0:00:11.1]} 36. Qc5+ {[%clk 0:00:21.8]} 36... Kf7 {[%clk 0:00:10.9]} 37. Nd6+
{[%clk 0:00:22.3]} 37... Kg6 {[%clk 0:00:10]} 38. Ne4 {[%clk 0:00:20]} 38... f5
{[%clk 0:00:09.2]} 39. Qc6 {[%clk 0:00:18.2]} 39... Qd5 {[%clk 0:00:09.1]} 40.
Qxd5 {[%clk 0:00:17]} 40... Rxd5 {[%clk 0:00:10]} 41. Nf2 {[%clk 0:00:15.8]}
41... Rd2 {[%clk 0:00:09.6]} 42. Kg1 {[%clk 0:00:15.3]} 42... e5 {[%clk
0:00:09.9]} 43. Ra1 {[%clk 0:00:15.2]} 43... f4 {[%clk 0:00:10.1]} 44. Ne4
{[%clk 0:00:14.4]} 44... Re2 {[%clk 0:00:09.8]} 45. Ra4 {[%clk 0:00:13.2]} 45...
Kf5 {[%clk 0:00:09.9]} 46. Nd6+ {[%clk 0:00:13.2]} 46... Ke6 {[%clk 0:00:09.1]}
47. Nc4 {[%clk 0:00:13.5]} 47... e4 {[%clk 0:00:08]} 48. Kf1 {[%clk 0:00:13]}
48... f3 {[%clk 0:00:07.1]} 49. gxf3 {[%clk 0:00:13.3]} 49... exf3 {[%clk
0:00:08]} 50. Ra3 {[%clk 0:00:13.7]} 50... Rc2 {[%clk 0:00:07.4]} 51. Ne3 {[%clk
0:00:10]} 51... Rh2 {[%clk 0:00:06]} 52. Ra6+ {[%clk 0:00:09.9]} 52... Kf7
{[%clk 0:00:03.1]} 53. Rxh6 {[%clk 0:00:10.5]} 53... Kg7 {[%clk 0:00:03]} 54.
Rh4 {[%clk 0:00:10.9]} 54... Re2 {[%clk 0:00:01.7]} 55. Nf5+ {[%clk 0:00:07.1]}
55... Kg6 {[%clk 0:00:02]} 56. Nd4 {[%clk 0:00:07.4]} 56... Rh2 {[%clk
0:00:01.9]} 57. Nxf3 {[%clk 0:00:07.6]} 57... Rh1+ {[%clk 0:00:02.4]} 58. Kg2
{[%clk 0:00:07.8]} 58... Ra1 {[%clk 0:00:03.3]} 59. Rd4 {[%clk 0:00:08]} 59...
Kh5 {[%clk 0:00:03.6]} 60. Kg3 {[%clk 0:00:08.3]} 60... Ra5 {[%clk 0:00:03]} 61.
Re4 {[%clk 0:00:08.5]} 61... Kh6 {[%clk 0:00:03.6]} 62. Re5 {[%clk 0:00:08.4]}
62... Ra3 {[%clk 0:00:04.3]} 63. h4 {[%clk 0:00:08.2]} 63... Ra4 {[%clk
0:00:04.9]} 64. Rf5 {[%clk 0:00:07.9]} 64... Ra7 {[%clk 0:00:05]} 65. Kg4 {[%clk
0:00:07.2]} 65... Ra4+ {[%clk 0:00:05.2]} 66. Rf4 {[%clk 0:00:07.3]} 66... Ra8
{[%clk 0:00:05.7]} 67. Rf6+ {[%clk 0:00:07.3]} 67... Kh7 {[%clk 0:00:05.2]} 68.
Ng5+ {[%clk 0:00:06.8]} 68... Kg7 {[%clk 0:00:05.8]} 69. Rc6 {[%clk 0:00:06.7]}
69... Kg8 {[%clk 0:00:06.2]} 70. Kh5 {[%clk 0:00:06.8]} 70... Rf8 {[%clk
0:00:05.1]} 71. Kg6 {[%clk 0:00:06.6]} 71... Re8 {[%clk 0:00:04.3]} 72. Rc7
{[%clk 0:00:06.7]} 72... Kf8 {[%clk 0:00:02.5]} 73. Rh7 {[%clk 0:00:03.7]} 1-0